bitfinex/quotes_SOLUSD_20240616
["timestamp","ask_amount","ask_price","bid_price","bid_amount"]
[1718535080474,7.6241,145.59,145.56,2.5418]
[1718535080662,2.5414,145.59,145.56,7.6256]
[1718535080864,2.5414,145.59,145.56,7.6255]
[1718535081070,7.6246,145.58,145.55,2.5419]
[1718535081383,2.5412,145.6,145.57,2.5416]
[1718535081584,7.6237,145.6,145.57,2.5416]
[1718535081969,2.5414,145.59,145.56,7.6253]
[1718535082286,25.4142,145.59,145.56,2.5419]
[1718535082482,25.4142,145.59,145.55,7.626]
[1718535082483,2.5416,145.58,145.55,7.626]
[1718535082663,25.4142,145.59,145.55,7.626]
[1718535082864,2.5416,145.58,145.55,2.542]
[1718535083067,22.8727,145.59,145.55,15.2522]
[1718535083267,22.8727,145.59,145.55,7.6261]
[1718535083588,2.5416,145.58,145.55,7.626]
[1718535083885,2.5418,145.57,145.53,22.8816]
[1718535084187,7.6252,145.57,145.54,2.5421]
[1718535084390,17.7902,145.59,145.5,2.79546738]
[1718535084564,1.20022248,145.61,145.57,2.5417]
[1718535084565,7.6238,145.6,145.57,2.5417]
[1718535084765,15.2474,145.6,145.56,25.4185]
[1718535084967,12.7061,145.6,145.56,22.8768]
[1718535085194,2.5412,145.6,145.57,2.5417]
[1718535085463,2.5414,145.59,145.56,2.5417]
[1718535085672,2.5414,145.59,145.56,7.6254]
[1718535086077,7.6238,145.6,145.57,2.5417]
[1718535086380,7.6241,145.59,145.55,17.794]
[1718535086587,15.2493,145.58,145.54,25.4218]
[1718535086783,25.4156,145.58,145.54,15.2531]
[1718535087101,1.20022248,145.61,145.5,2.79546738]
[1718535087268,2.5412,145.6,145.57,7.6249]
[1718535087467,15.2472,145.6,145.56,22.8761]
[1718535087668,25.4123,145.6,145.56,15.251]
[1718535087869,1.20022248,145.61,145.51,120.68]
[1718535088071,1.20022248,145.61,145.6,25.412]
[1718535089083,1.20022248,145.61,145.6,2.5412]
[1718535089588,1.20022248,145.61,145.6,25.412]
[1718535093697,1.20022248,145.61,145.51,20.68]
[1718535093900,1.20022248,145.61,145.57,7.6249]
[1718535093901,26.61142248,145.61,145.57,7.6249]
[1718535094074,2.5412,145.6,145.57,2.5416]
[1718535094274,2.5412,145.6,145.56,22.876]
[1718535094499,26.61152248,145.61,145.57,2.5417]
[1718535094695,1.20022248,145.61,145.58,7.6244]
[1718535095082,1.20022248,145.61,145.5,124.68206738]
[1718535095283,1.20022248,145.61,145.59,2.5412]
[1718535095487,1.20022248,145.61,145.59,15.2476]
[1718535095802,1.20022248,145.61,145.6,25.412]
[1718535096304,1.20022248,145.61,145.6,15.2472]
[1718535096469,1.20022248,145.61,145.6,25.412]
[1718535096676,1.20022248,145.61,145.6,7.6236]
[1718535097005,1.20022248,145.61,145.6,15.2472]
[1718535097679,1.20022248,145.61,145.6,25.412]
[1718535098583,1.20022248,145.61,145.6,31.8508]
[1718535102098,1.20022248,145.61,145.6,25.412]
[1718535102504,1.20022248,145.61,145.6,15.2472]
[1718535102686,1.20022248,145.61,145.59,2.37740613]
[1718535102890,1.20022248,145.61,145.59,4.91870613]
[1718535103083,3.74122248,145.61,145.59,2.37740613]
[1718535103407,1.20022248,145.61,145.59,4.91870613]
[1718535103605,1.20022248,145.61,145.59,10.00140613]
[1718535103903,1.20022248,145.61,145.59,4.91870613]
[1718535104095,1.20022248,145.61,145.6,2.5412]
[1718535104405,1.20022248,145.61,145.6,7.6236]
[1718535104809,1.20022248,145.61,145.59,7.45990613]
[1718535105106,1.20022248,145.61,145.6,2.5412]
[1718535105294,1.20022248,145.61,145.6,15.2472]
[1718535105501,1.20022248,145.61,145.6,7.6236]
[1718535105697,1.20022248,145.61,145.6,27.78924284]
[1718535106411,1.20022248,145.61,145.6,17.62444284]
[1718535106980,1.20022248,145.61,145.6,10.00084284]
[1718535107900,1.20022248,145.61,145.6,17.62444284]
[1718535108383,1.20022248,145.61,145.6,10.00084284]
[1718535109604,1.20022248,145.61,145.6,7.6236]
[1718535110123,1.20022248,145.61,145.6,2.5412]
[1718535110310,1.20022248,145.61,145.6,7.6236]
[1718535110612,1.20022248,145.61,145.6,2.5412]
[1718535110824,1.20022248,145.61,145.6,25.412]
[1718535115411,1.20022248,145.61,145.6,46.432]
[1718535115618,1.20022248,145.61,145.6,46.092]
[1718535116316,1.20022248,145.61,145.6,166.432]
[1718535116486,1.20022248,145.61,145.6,166.772]
[1718535118403,1.20022248,145.61,145.6,66.772]
[1718535118822,1.20022248,145.61,145.6,46.092]
[1718535119490,1.20022248,145.61,145.6,48.12924284]
[1718535120411,1.20022248,145.61,145.6,47.95924284]
[1718535121320,9.32e-05,145.63,145.62,36.095]
[1718535121510,1.61575949,145.67,145.64,20.85]
[1718535121701,1.61575949,145.67,145.66,25.4014]
[1718535122011,1.61575949,145.67,145.66,27.77766361]
[1718535124420,1.24575949,145.67,145.66,27.77766361]
[1718535128807,2.5408,145.63,145.6,4.83004151]
[1718535129135,2.5407,145.63,145.6,9.91234151]
[1718535129702,10.1634,145.63,145.6,2.28894151]
[1718535129902,10.1634,145.63,145.38,34.46226502]
[1718535129903,5.0825,145.6,145.56,2.5417]
[1718535130102,2.5414,145.59,145.56,2.5418]
[1718535130330,2.5414,145.59,145.56,7.6255]
[1718535130627,7.6239,145.6,145.56,5.0837]
[1718535130817,2.5413,145.59,145.56,7.6255]
[1718535131233,7.6241,145.59,145.55,22.8776]
[1718535131425,7.6241,145.59,145.56,2.5418]
[1718535131627,7.6241,145.59,145.55,5.084]
[1718535131628,5.0829,145.59,145.55,5.084]
[1718535131830,2.5414,145.59,145.56,2.5418]
[1718535132017,2.5415,145.58,145.55,2.542]
[1718535132221,2.5417,145.57,145.54,7.6263]
[1718535132413,2.5417,145.58,145.55,7.626]
[1718535132618,2.5417,145.58,145.55,2.5419]
[1718535132841,22.8731,145.59,145.55,7.626]
[1718535133339,22.8731,145.59,145.56,2.5418]
[1718535133340,2.5415,145.59,145.56,2.5418]
[1718535133647,0.17,145.59,145.51,7.628]
[1718535133950,15.6683,145.61,145.51,2.5427]
[1718535133951,2.5423,145.54,145.51,2.5427]
[1718535134117,10.1676,145.56,145.46,21.984]
[1718535134317,7.6262,145.55,145.51,12.7137]
[1718535134532,5.0845,145.54,145.5,7.6285]
[1718535134711,2.5423,145.54,145.5,22.8859]
[1718535134908,2.5424,145.53,145.49,22.8873]
[1718535135109,2.5424,145.53,145.5,7.6286]
[1718535135318,2.5424,145.53,145.5,2.5428]
[1718535135730,7.6273,145.53,145.49,25.4302]
[1718535135940,7.6273,145.53,145.5,2.5429]
[1718535136117,2.5424,145.53,145.5,2.5429]
[1718535136553,7.6272,145.53,145.5,2.5429]
[1718535136725,2.5426,145.52,145.49,2.543]
[1718535136925,2.5426,145.52,145.49,7.6292]
[1718535137333,2.5426,145.52,145.49,2.543]
[1718535137508,7.6278,145.52,145.49,2.543]
[1718535137822,2.5426,145.52,145.49,7.6292]
[1718535138025,7.6278,145.52,145.49,2.543]
[1718535138234,22.8834,145.52,145.48,7.6295]
[1718535138437,2.5428,145.51,145.48,7.6295]
[1718535138612,22.8834,145.52,145.48,7.6295]
[1718535138928,2.5428,145.51,145.48,7.6295]
[1718535139114,7.6284,145.51,145.48,2.5431]
[1718535139312,7.6284,145.51,145.48,2.5432]
[1718535139618,2.5428,145.51,145.48,2.5432]
[1718535139948,2.5428,145.51,145.48,7.6297]
[1718535140243,2.5427,145.52,145.49,2.543]
[1718535140550,7.6279,145.52,145.49,2.5431]
[1718535140915,2.5425,145.53,145.5,2.5428]
[1718535141117,21.9147,145.54,145.52,2.5425]
[1718535141329,21.9147,145.54,145.51,5.0854]
[1718535141558,24.4569,145.54,145.51,7.628]
[1718535142130,24.4569,145.54,145.5,17.7997]
[1718535142131,21.9147,145.54,145.53,2.5424]
[1718535142331,15.6683,145.54,145.53,7.6272]
[1718535142542,15.6683,145.54,145.52,2.5424]
[1718535142783,15.6683,145.54,145.51,25.4266]
[1718535142948,15.6683,145.54,145.51,22.884]
[1718535143150,15.6683,145.54,145.52,7.6275]
[1718535143469,15.6683,145.54,145.53,2.5424]
[1718535143637,7.6259,145.56,145.53,2.5423]
[1718535143833,29.9899,145.57,145.53,12.7119]
[1718535144081,16.3444,145.57,145.55,15.2522]
[1718535144243,16.3444,145.57,145.55,7.626]
[1718535144565,16.3444,145.57,145.56,2.5419]
[1718535144769,16.3444,145.57,145.55,25.4204]
[1718535144973,16.3444,145.57,145.55,7.626]
[1718535145140,16.3444,145.57,145.56,2.5419]
[1718535145340,2.5415,145.58,145.55,7.626]
[1718535145738,7.6246,145.58,145.55,2.5419]
[1718535145936,7.6246,145.58,145.55,7.626]
[1718535145937,2.5415,145.58,145.55,7.626]
[1718535146266,21.4268,145.6,145.5,43.4867]
[1718535146438,16.3444,145.6,145.57,5.0833]
[1718535146760,10.1636,145.62,145.51,20.68]
[1718535146761,18.8852,145.63,145.59,17.7895]
[1718535147060,23.9666,145.63,145.6,2.5411]
[1718535147264,23.9666,145.63,145.59,2.5412]
[1718535147265,2.5408,145.62,145.59,2.5412]
[1718535147446,2.541,145.61,145.58,7.6243]
[1718535147634,2.541,145.61,145.58,2.5414]
[1718535147835,2.5412,145.6,145.57,2.5415]
[1718535148052,15.2475,145.6,145.56,7.6254]
[1718535148258,2.5413,145.59,145.56,2.5417]
[1718535148462,22.871,145.6,145.56,15.2511]
[1718535148765,2.5413,145.59,145.56,25.4187]
[1718535148968,2.5413,145.59,145.56,7.6254]
[1718535149356,25.4123,145.6,145.57,2.5417]
[1718535149559,7.6239,145.6,145.57,2.5417]
[1718535149887,2.5413,145.6,145.57,7.6251]
[1718535150171,7.6237,145.6,145.57,2.5417]
[1718535150350,25.4108,145.61,145.58,2.5415]
[1718535150551,22.8709,145.6,145.57,2.5416]
[1718535150760,7.6237,145.6,145.57,2.5416]
[1718535150958,7.6237,145.6,145.57,7.625]
[1718535151350,2.5413,145.6,145.58,2.5415]
[1718535151545,7.17231461,145.66,145.51,141.36]
[1718535151744,2.541,145.61,145.58,25.4146]
[1718535152169,2.5408,145.63,145.59,7.624]
[1718535152375,2.5408,145.63,145.6,2.5411]
[1718535152376,2.5408,145.62,145.6,2.5411]
[1718535152676,7.6216,145.64,145.61,2.5409]
[1718535152849,7.6216,145.64,145.61,7.6229]
[1718535153381,7.6216,145.64,145.62,2.5408]
[1718535153382,2.5406,145.64,145.62,2.5408]
[1718535153678,25.4036,145.65,145.62,2.5408]
[1718535154048,25.4036,145.65,145.62,7.6224]
[1718535154049,7.6212,145.65,145.62,7.6224]
[1718535154571,2.5406,145.63,145.61,2.5409]
[1718535154775,7.6216,145.64,145.61,7.6229]
[1718535155075,2.5406,145.64,145.61,15.2459]
[1718535155575,30.78117989,145.67,145.51,20.0]
[1718535155880,15.2452,145.62,145.59,7.6239]
[1718535156049,2.5412,145.6,145.57,22.8747]
[1718535156254,2.5412,145.6,145.58,2.5415]
[1718535156449,15.2445,145.63,145.6,2.5411]
[1718535156679,2.5407,145.63,145.51,40.68]
[1718535156862,7.6225,145.62,145.59,7.6239]
[1718535157072,2.541,145.61,145.59,2.5413]
[1718535157461,2.541,145.61,145.58,22.8735]
[1718535157462,7.6231,145.61,145.58,7.6243]
[1718535157663,2.541,145.61,145.59,2.5413]
[1718535158049,22.8681,145.62,145.59,2.5413]
[1718535158470,25.4091,145.62,145.59,7.624]
[1718535158674,2.541,145.62,145.6,2.5411]
[1718535158863,2.541,145.62,145.59,22.8722]
[1718535158864,2.541,145.61,145.59,2.5412]
[1718535159073,2.541,145.62,145.6,2.5411]
[1718535159552,7.6227,145.62,145.59,25.4134]
[1718535159754,2.541,145.62,145.6,2.5411]
[1718535160063,22.8677,145.62,145.59,2.5412]
[1718535160379,2.5412,145.6,145.58,2.5414]
[1718535160874,25.4105,145.61,145.58,2.5414]
[1718535161074,7.6231,145.61,145.58,7.6244]
[1718535161280,2.5411,145.61,145.59,2.5413]
[1718535161566,25.4095,145.62,145.59,7.624]
[1718535161968,2.541,145.61,145.59,7.624]
[1718535162178,2.541,145.61,145.59,2.5413]
[1718535162378,7.6231,145.61,145.58,25.4148]
[1718535162693,2.541,145.61,145.59,2.5413]
[1718535162856,2.541,145.61,145.58,22.8734]
[1718535163057,2.541,145.61,145.59,2.5413]
[1718535163464,2.541,145.61,145.58,25.4148]
[1718535163680,2.541,145.61,145.59,2.5413]
[1718535163852,2.541,145.61,145.58,7.6242]
[1718535163853,5.082,145.61,145.58,7.6242]
[1718535164060,7.6236,145.6,145.57,25.4164]
[1718535164262,2.5414,145.59,145.57,2.5415]
[1718535164482,17.7886,145.6,145.57,7.625]
[1718535164657,2.5413,145.6,145.57,22.8753]
[1718535164858,7.6237,145.6,145.57,25.4169]
[1718535165072,7.6237,145.6,145.58,2.5415]
[1718535165273,2.5413,145.6,145.58,2.5415]
[1718535166583,25.4111,145.61,145.58,7.6245]
[1718535166788,22.87,145.61,145.58,7.6245]
[1718535167084,2.5412,145.6,145.58,7.6245]
[1718535167391,25.4111,145.61,145.58,7.6245]
[1718535167689,2.5413,145.6,145.57,12.7083]
[1718535167890,2.5408,145.62,145.51,20.0]
[1718535168070,15.2454,145.62,145.51,20.0]
[1718535168278,2.541,145.61,145.59,2.5413]
[1718535168590,2.541,145.61,145.5,16.5716]
[1718535168591,2.5416,145.58,145.5,16.5716]
[1718535168795,16.5449,145.6,145.57,2.5417]
[1718535168796,39.4164,145.6,145.57,2.5417]
[1718535169094,39.4164,145.6,145.57,7.6251]
[1718535169095,2.5413,145.59,145.57,7.6251]
[1718535169277,39.4164,145.6,145.57,7.6251]
[1718535169474,19.0861,145.6,145.58,2.5415]
[1718535169677,2.5409,145.62,145.5,137.2516]
[1718535170000,7.623,145.61,145.58,15.2488]
[1718535170304,15.2461,145.61,145.58,7.6244]
[1718535170476,7.623,145.61,145.58,25.4152]
[1718535170666,2.5412,145.6,145.58,7.6244]
[1718535171066,2.5412,145.6,145.58,2.5414]
[1718535171283,25.4105,145.61,145.58,7.6244]
[1718535171907,25.4105,145.61,145.58,15.249]
[1718535172313,2.5411,145.61,145.59,2.5413]
[1718535172474,12.7051,145.61,145.58,25.4151]
[1718535172789,2.5407,145.63,145.61,2.5408]
[1718535173111,2.5407,145.63,145.61,2.5409]
[1718535173406,2.5407,145.63,145.6,22.8698]
[1718535173407,7.622,145.63,145.6,22.8698]
[1718535173618,2.5408,145.62,145.6,22.8698]
[1718535173914,12.7046,145.62,145.59,7.6238]
[1718535174094,2.541,145.61,145.59,5.0825]
[1718535174276,25.4092,145.62,145.59,15.2478]
[1718535174584,2.541,145.61,145.59,7.6237]
[1718535174789,25.4091,145.62,145.59,15.2478]
[1718535175002,7.6227,145.62,145.6,2.5412]
[1718535175208,2.541,145.61,145.59,2.5412]
[1718535175503,7.622,145.63,145.61,2.5408]
[1718535175678,7.622,145.63,145.61,2.5409]
[1718535175872,22.8661,145.63,145.6,22.87]
[1718535176180,25.4069,145.63,145.61,2.541]
[1718535176382,7.6221,145.63,145.61,2.541]
[1718535176688,15.2441,145.63,145.61,2.541]
[1718535176911,15.2441,145.63,145.6,22.87]
[1718535176912,2.5408,145.62,145.6,7.6233]
[1718535177791,7.6226,145.62,145.6,2.541]
[1718535177989,22.8678,145.62,145.59,5.0826]
[1718535178190,25.4087,145.62,145.59,12.7066]
[1718535178515,25.4087,145.62,145.6,2.5412]
[1718535178689,25.4087,145.62,145.59,25.4133]
[1718535178891,7.6227,145.62,145.59,25.4133]
[1718535179095,7.6227,145.62,145.6,2.5411]
[1718535180030,15.2452,145.62,145.59,25.4133]
[1718535180312,7.6237,145.6,145.58,2.5414]
[1718535180520,2.5413,145.6,145.58,7.6244]
[1718535180714,2.5413,145.6,145.58,2.5415]
[1718535180715,7.6238,145.6,145.58,2.5415]
[1718535181735,5.0827,145.59,145.56,5.0835]
[1718535181894,5.083,145.59,145.56,5.0835]
[1718535182087,7.6241,145.59,145.57,2.5416]
[1718535182285,25.4139,145.59,145.56,15.2509]
[1718535182527,7.6242,145.59,145.57,2.5417]
[1718535182713,15.2484,145.59,145.56,25.4184]
[1718535183031,2.5415,145.58,145.56,7.6253]
[1718535183337,2.5415,145.58,145.55,7.6258]
[1718535183338,7.6252,145.57,145.55,2.5419]
[1718535183496,25.416,145.58,145.56,2.5418]
[1718535183685,7.6249,145.58,145.55,22.8784]
[1718535183891,15.2484,145.59,145.56,25.4185]
[1718535184135,0.17,145.61,145.55,5.0839]
[1718535184416,7.6247,145.58,145.56,2.5418]
[1718535184796,15.2493,145.58,145.55,25.42]
[1718535185001,7.6247,145.58,145.56,2.5418]
[1718535185221,2.5416,145.58,145.56,7.6255]
[1718535185530,22.8731,145.59,145.56,7.6255]
[1718535185697,2.5415,145.58,145.56,7.6255]
[1718535186019,7.6248,145.58,145.55,12.7099]
[1718535186225,2.5417,145.57,145.55,7.6259]
[1718535186390,17.7911,145.58,145.56,2.5419]
[1718535186591,17.7911,145.58,145.55,25.4202]
[1718535186818,25.4157,145.58,145.55,25.4202]
[1718535187006,25.4157,145.58,145.55,22.8783]
[1718535187322,2.5417,145.57,145.55,7.6259]
[1718535187834,7.6251,145.57,145.55,2.5419]
[1718535188120,2.5417,145.57,145.55,2.5419]
[1718535188696,2.5419,145.56,145.54,7.6264]
[1718535188907,7.6253,145.57,145.55,2.542]
[1718535189125,22.8758,145.57,145.54,7.6264]
[1718535189432,2.5419,145.56,145.54,2.5421]
[1718535189634,2.5421,145.55,145.52,12.7125]
[1718535189922,2.5421,145.55,145.53,7.6271]
[1718535190124,2.5422,145.54,145.52,2.5425]
[1718535190428,2.5421,145.55,145.53,2.5423]
[1718535191220,7.6262,145.55,145.53,2.5424]
[1718535191401,2.5421,145.55,145.53,2.5424]
[1718535191816,15.2524,145.55,145.52,7.6274]
[1718535192009,7.6262,145.55,145.53,2.5424]
[1718535192208,7.6262,145.55,145.52,15.2551]
[1718535192428,2.5421,145.55,145.53,2.5424]
[1718535192725,22.8788,145.55,145.52,2.5425]
[1718535193015,2.5426,145.52,145.5,2.5429]
[1718535193227,22.8821,145.53,145.5,2.5429]
[1718535193389,7.6275,145.53,145.5,7.6288]
[1718535193595,25.4248,145.53,145.5,2.5428]
[1718535193820,25.4248,145.53,145.5,7.6287]
[1718535194121,2.5426,145.52,145.5,2.5428]
[1718535194509,22.8834,145.52,145.49,2.543]
[1718535194823,22.8834,145.52,145.49,7.6292]
[1718535195127,15.2556,145.52,145.49,7.6292]
[1718535195415,2.5428,145.51,145.49,2.543]
[1718535195618,7.6284,145.51,145.48,7.6295]
[1718535195808,15.9217,145.52,145.47,2.5434]
[1718535196008,7.6283,145.51,145.48,7.6295]
[1718535196228,15.9217,145.52,145.44,15.5482]
[1718535196526,2.5427,145.51,145.49,2.543]
[1718535196826,7.629,145.5,145.47,7.63]
[1718535197131,2.5431,145.5,145.48,2.5432]
[1718535197633,2.5429,145.5,145.48,2.5432]
[1718535197791,2.5429,145.5,145.47,22.8909]
[1718535197996,7.6288,145.5,145.47,25.4342]
[1718535198197,15.2573,145.51,145.48,7.6297]
[1718535198640,25.4288,145.51,145.48,7.6297]
[1718535198921,7.6285,145.51,145.48,15.2595]
[1718535199234,39.1461,145.52,145.49,2.543]
[1718535199540,2.7128,145.51,145.49,2.543]
[1718535199738,7.7983,145.51,145.48,25.432]
[1718535200332,15.9217,145.56,145.44,15.5482]
[1718535200532,15.9217,145.56,145.55,7.6261]
[1718535200698,15.9217,145.56,145.55,2.542]
[1718535200898,6.2846,145.57,145.54,25.4213]
[1718535200899,2.5417,145.57,145.54,25.4213]
[1718535201104,35.2503,145.57,145.54,7.6263]
[1718535201343,17.7934,145.56,145.52,12.7122]
[1718535201633,2.5419,145.56,145.54,2.5422]
[1718535201841,24.0215,145.59,145.57,2.5417]
[1718535202012,31.5064,145.6,145.57,7.6251]
[1718535202214,13.7177,145.6,145.57,15.25]
[1718535202421,2.5413,145.6,145.58,2.5415]
[1718535202615,7.6237,145.6,145.57,7.625]
[1718535202821,2.5413,145.59,145.57,2.5416]
[1718535203417,7.624,145.59,145.56,25.4179]
[1718535203618,7.624,145.59,145.57,2.5417]
[1718535203915,2.5413,145.59,145.56,25.4179]
[1718535204320,2.5413,145.59,145.57,2.5416]
[1718535204529,7.6241,145.59,145.56,17.7926]
[1718535204731,7.6241,145.59,145.56,25.4182]
[1718535204935,2.5415,145.58,145.56,2.5417]
[1718535206040,22.8713,145.6,145.57,2.5416]
[1718535206226,25.4127,145.6,145.57,5.0834]
[1718535206421,7.6233,145.61,145.58,2.5414]
[1718535206636,2.5412,145.6,145.58,2.5415]
[1718535206944,21.4789,145.62,145.59,7.6239]
[1718535207240,7.6231,145.61,145.58,7.6243]
[1718535207540,7.6231,145.61,145.58,15.2489]
[1718535207741,15.2462,145.61,145.58,7.6243]
[1718535208343,7.6231,145.61,145.58,7.6243]
[1718535208540,7.6231,145.61,145.59,2.5413]
[1718535208741,7.6231,145.61,145.58,12.7075]
[1718535208946,7.6231,145.61,145.58,15.2489]
[1718535209456,7.6231,145.61,145.58,7.6243]
[1718535209457,25.4103,145.61,145.58,7.6243]
[1718535209954,7.6231,145.61,145.58,12.7074]
[1718535210157,7.6231,145.61,145.58,25.415]
[1718535210554,2.5411,145.61,145.59,2.5413]
[1718535211251,2.5411,145.61,145.58,25.415]
[1718535211252,7.6231,145.61,145.58,25.415]
[1718535211434,15.2462,145.61,145.58,7.6243]
[1718535211956,7.6237,145.6,145.56,7.6254]
[1718535212259,2.5412,145.6,145.57,22.875]
[1718535212427,7.6236,145.6,145.57,22.875]
[1718535212626,2.5412,145.6,145.58,2.5415]
[1718535212923,25.4109,145.61,145.58,7.6246]
[1718535213431,2.5412,145.6,145.58,2.5415]
[1718535213632,25.4109,145.61,145.58,7.6246]
[1718535213824,7.6233,145.61,145.58,15.2492]
[1718535214021,2.5412,145.6,145.58,2.5415]
[1718535215359,15.2464,145.61,145.58,15.2492]
[1718535215528,25.4105,145.61,145.58,7.6246]
[1718535215734,7.6233,145.61,145.58,15.2492]
[1718535216055,15.2464,145.61,145.58,7.6246]
[1718535216357,15.2464,145.61,145.58,15.2492]
[1718535216358,7.6233,145.61,145.58,15.2492]
[1718535216560,34.1838,145.62,145.57,2.5416]
[1718535216561,2.5414,145.59,145.57,2.5416]
[1718535216785,22.8713,145.6,145.57,7.625]
[1718535216786,25.4126,145.6,145.57,7.625]
[1718535216984,2.5412,145.6,145.57,17.7913]
[1718535217153,2.5414,145.59,145.57,2.5416]
[1718535218083,2.5414,145.59,145.57,7.625]
[1718535218459,7.6237,145.6,145.57,15.2501]
[1718535218970,15.2473,145.6,145.57,7.625]
[1718535219490,2.5413,145.6,145.58,2.5415]
[1718535220970,22.87,145.61,145.58,2.5415]
[1718535221296,22.87,145.61,145.56,2.5418]
[1718535221297,2.5415,145.58,145.56,2.5418]
[1718535221469,22.8729,145.59,145.56,2.5418]
[1718535221673,22.8729,145.59,145.56,7.6256]
[1718535221674,25.4143,145.59,145.56,7.6256]
[1718535222193,0.17,145.61,145.51,16.422]
[1718535222495,0.17,145.61,145.55,2.542]
[1718535222496,2.5417,145.57,145.55,2.542]
[1718535222660,25.586,145.58,145.55,7.6261]
[1718535222858,2.5417,145.57,145.55,7.6261]
[1718535223080,2.5416,145.58,145.56,2.5418]
[1718535223294,15.2486,145.59,145.56,7.6255]
[1718535223468,2.5415,145.58,145.55,25.42]
[1718535223796,2.5415,145.58,145.56,2.5418]
[1718535223973,0.17,145.6,145.52,2.28989909]
[1718535224181,7.6248,145.58,145.55,2.5419]
[1718535224383,2.5416,145.58,145.56,2.5418]
[1718535224590,2.5416,145.58,145.55,25.4201]
[1718535224803,2.5417,145.57,145.55,2.5419]
[1718535225094,7.6251,145.57,145.54,25.4217]
[1718535225393,2.5417,145.57,145.54,25.4217]
[1718535225571,7.6251,145.57,145.54,25.4217]
[1718535226900,2.5417,145.57,145.54,22.8796]
[1718535227799,2.5417,145.57,145.55,2.542]
[1718535227999,2.5417,145.57,145.54,25.4217]
[1718535228301,2.5417,145.57,145.55,2.542]
[1718535228873,22.8742,145.58,145.55,2.542]
[1718535229280,22.8731,145.59,145.56,2.5418]
[1718535229496,2.5416,145.58,145.55,25.4203]
[1718535229893,2.5416,145.58,145.56,2.5418]
[1718535230199,25.4145,145.59,145.56,7.6256]
[1718535230770,7.6236,145.6,145.57,5.0832]
[1718535230967,7.6237,145.6,145.57,7.625]
[1718535231193,15.2473,145.6,145.57,7.625]
[1718535231402,2.5414,145.59,145.57,2.5416]
[1718535231579,2.5415,145.58,145.56,2.5418]
[1718535231776,2.5415,145.59,145.56,5.0837]
[1718535232103,2.5414,145.59,145.56,22.8763]
[1718535232281,2.5414,145.59,145.57,2.5417]
[1718535232482,2.5421,145.55,145.53,2.5424]
[1718535232678,22.8775,145.56,145.53,7.6272]
[1718535232679,25.4195,145.56,145.53,7.6272]
[1718535232887,7.626,145.56,145.53,7.6272]
[1718535233103,15.2517,145.56,145.53,7.6272]
[1718535233402,7.626,145.56,145.53,7.6272]
[1718535233603,25.4183,145.57,145.53,22.8817]
[1718535233802,12.7088,145.57,145.54,2.5422]
[1718535234102,2.5419,145.56,145.53,17.7962]
[1718535234403,2.5419,145.56,145.54,2.5422]
[1718535234798,25.4175,145.57,145.54,2.5422]
[1718535235100,7.6257,145.56,145.53,7.6268]
[1718535235282,2.5419,145.56,145.53,15.254]
[1718535235683,2.5421,145.55,145.53,2.5422]
[1718535235877,2.5421,145.55,145.52,9.91729909]
[1718535236185,7.6262,145.55,145.52,9.91729909]
[1718535236387,7.6262,145.55,145.52,17.54509909]
[1718535236708,7.626,145.56,145.53,7.6272]
[1718535237210,7.6258,145.56,145.53,7.627]
[1718535237394,2.5421,145.55,145.53,2.5423]